Cogmind - Beta 17 @@@ ROGUE MODE // 2026.07.07 @ 16:11:49 Player: teag2 Result: Self-destructed Performance ------------- Evolutions (2) 1000 Regions Visited (5) 1000 Robots Destroyed (50) 250 Value Destroyed (1259) 1259 Prototype IDs (24) 480 Alien Tech Used (0) 0 Bonus (300) 300 TOTAL SCORE: 4289 Bonus ------- Aligned with FarCom 300 Cogmind --------- Core Integrity 458/550 Matter 270/300 Energy 265/265 System Corruption 0% Temperature Cool (62) Movement Treading (240) Ox1 Location -8/Materials Parts ------- > --- POWER (1) -------- Improved Ion Engine > --- PROPULSION (4) --- Light Treads Light Treads Light Treads > --- UTILITY (4) ------ High-capacity Storage Unit Trap Scanner Hardened Medium Armor Plating > --- WEAPON (2) ------- Heavy Assault Rifle Minigun > --- INVENTORY (20) --- Light Nuclear Core Light Treads Light Treads Light Treads Light Treads Coolant Injector High-capacity Matter Pod (200) Improved Signal Interpreter Reactive Plating High-powered Tractor Beam PSU Rigger Plasma Cannon Plasma Cannon Plasma Cannon Plasma Cannon Heavy Missile Launcher Heavy Missile Launcher Heavy Missile Launcher Heavy Missile Launcher Peak State ------------ > --- POWER ------------ Improved Ion Engine > --- PROPULSION ------- Light Treads Light Treads Light Treads Light Treads > --- UTILITY ---------- High-capacity Storage Unit Trap Scanner Hacking Suite PSU Rigger > --- WEAPON ----------- Heavy Assault Rifle Minigun > --- INVENTORY -------- Improved Ion Engine Light Nuclear Core Light Treads Light Treads Light Treads Light Treads Coolant Injector High-capacity Matter Pod Improved Signal Interpreter Light Armor Plating Hardened Light Armor Plating High-powered Tractor Beam Plasma Cannon Plasma Cannon Plasma Cannon Plasma Cannon Heavy Missile Launcher Heavy Missile Launcher Heavy Missile Launcher Heavy Missile Launcher [Rating: 31] Favorites ----------- Power Ion Engine Engine Ion Engine Propulsion Light Treads Treads Light Treads Utility Hacking Suite Device Trap Scanner Storage High-capacity Storage Unit Hackware Hacking Suite Protection Hardened Light Armor Plating Weapon Beam Cannon Energy Gun Particle Gun Energy Cannon Beam Cannon Ballistic Gun Assault Rifle Launcher Rocket Launcher Build | -11 -10 -10 -10 -9 -8 ------- Run | Yrd Mat Min Exi Min Mat Slots Evolved 4 | . . . . . 4 Power . | . . . . . . Propulsion 2 | . . . . . 2 Utility 2 | . . . . . 2 Weapon . | . . . . . . Parts Attached 34 | 6 3 7 . 3 15 Power 3 | 1 . 1 . . 1 Engine 3 | 1 . 1 . . 1 Core . | . . . . . . Reactor . | . . . . . . Propulsion 10 | 2 . 2 . 1 5 Treads 10 | 2 . 2 . 1 5 Leg . | . . . . . . Wheel . | . . . . . . Hover . | . . . . . . Flight . | . . . . . . Utility 10 | 1 2 1 . . 6 Device 3 | . . . . . 3 Storage 3 | 1 1 1 . . . Processor . | . . . . . . Hackware 1 | . 1 . . . . Protection 3 | . . . . . 3 Artifact . | . . . . . . Weapon 11 | 2 1 3 . 2 3 Energy Gun 2 | . . 2 . . . Energy Cannon 3 | . 1 1 . . 1 Ballistic Gun 4 | 2 . . . . 2 Ballistic Cannon . | . . . . . . Launcher 2 | . . . . 2 . Special Weapon . | . . . . . . Impact Weapon . | . . . . . . Slashing Weapon . | . . . . . . Piercing Weapon . | . . . . . . Special Melee Weapon . | . . . . . . Unidentified Prototypes 1 | . . . . . 1 Parts Lost 10 | . . 5 . 1 4 Power 1 | . . 1 . . . Propulsion 4 | . . 2 . 1 1 Utility 2 | . . . . . 2 Weapon 3 | . . 2 . . 1 Highest Loss Streak 3 | . . 2 . 1 3 To Critical Strikes . | . . . . . . Average Backups 13 | 1 8 12 14 18 19 Power 1 | . . 2 3 3 1 Propulsion 5 | 1 5 6 6 5 4 Utility 3 | . 2 2 3 5 5 Weapon 2 | . . 1 2 3 7 Tool/Special . | . . . . . . Unused Backups 28 | . 4 . . . 24 Power 4 | . . . . . 4 Propulsion 7 | . 2 . . . 5 Utility 8 | . 1 . . . 7 Weapon 9 | . 1 . . . 8 Tool/Special . | . . . . . . Average Slot Usage (%) 97 | . 99 93 100 99 98 Engine 13 | . 14 13 14 14 9 Treads 29 | . 28 28 28 27 35 Device 1 | . . . . . 8 Storage 13 | . 14 14 14 14 9 Hackware 13 | . 13 14 14 14 8 Protection 1 | . . . . . 8 Energy Gun 1 | . . . 14 2 . Energy Cannon 10 | . 2 20 14 2 2 Ballistic Gun 9 | . 25 1 . . 15 Launcher 2 | . . . . 22 . Peak Build Rating 31 | 6 10 12 12 13 31 Average Rating 12 | 4 9 9 12 12 24 On Entrance 8 | . 6 10 12 12 13 Avg Prop Armor Cover (%) . | . . . . . . Naked Turns . | . . . . . . Heaviest Build 64 | 13 20 51 51 52 64 Greatest Support 80 | 40 40 40 40 40 80 Greatest Overweight (x) 1 | . . 1 1 1 . Average Overweight (x) . | . . . 1 1 . Largest Inventory Capacity 20 | 8 10 20 20 20 20 Average Capacity 16 | 7 9 18 20 20 20 Most Carried 20 | 4 10 15 16 19 20 Average Carried 13 | 1 8 12 14 18 19 Final Capacity 20 | 8 10 20 20 20 20 Final Carried 19 | 2 10 14 16 19 19 Class Distribution -------------------- 85% | Mutant 11% | Scavenger-Mutant 3% | Scavenger-Skirmisher Dominant Class ---------------- Mutant | -10/Materials Mutant | -10/Mines Mutant | -10/Exiles Mutant | -9/Mines Scavenger-Mutant | -8/Materials Resources | -11 -10 -10 -10 -9 -8 ----------- Run | Yrd Mat Min Exi Min Mat Matter Collected 1187 | 218 306 125 . 62 476 Remotely . | . . . . . . Salvage Created 1574 | . 425 399 . 81 669 Parts 100 | . 38 21 . 6 35 Haulers Intercepted 3 | . 2 . . . 1 Recyclers Shooed 2 | . . . . 1 1 Parts Field Recycled . | . . . . . . Retrieved Matter . | . . . . . . Parts Self-Destructed . | . . . . . . Prevented . | . . . . . . Parts Restored . | . . . . . . Kills | -11 -10 -10 -10 -9 -8 ------- Run | Yrd Mat Min Exi Min Mat Combat Hostiles Destroyed 37 | . 13 11 . 2 11 Guns 23 | . 13 1 . . 9 Cannons 12 | . . 10 . . 2 AOE 2 | . . . . 2 . Classes Destroyed 11 | . 6 1 . 1 3 Worker 2 | . 1 . . . 1 Builder 1 | . . . . . 1 Tunneler 1 | . . 1 . . . Hauler 3 | . 2 . . . 1 Recycler 1 | . . . . . 1 Operator 2 | . 2 . . . . Watcher 3 | . 2 . . . 1 Swarmer 14 | . 9 3 . . 2 Grunt 15 | . 4 8 . . 3 Sentry 7 | . . . . 2 5 Hunter 1 | . . . . . 1 Best Kill Streak 4 | . 4 4 . 2 3 Combat Bots Only 4 | . 4 3 . 2 3 Max Kills in Single Turn 2 | . 1 1 . 1 2 Gunslinging 1 | . . . . . 1 Exploded 1 | . . . . 1 . Melee . | . . . . . . Uniques/NPCs Destroyed . | . . . . . . Combat | -11 -10 -10 -10 -9 -8 -------- Run | Yrd Mat Min Exi Min Mat Hostile Shots Fired 199 | . 48 65 . 4 82 Missed 50 | . 11 14 . 2 23 Hits 149 | . 37 51 . 2 59 Projectile 149 | . 37 51 . 2 59 Critical Strikes 2 | . . . . . 2 Damage Taken 1818 | . 341 575 . 31 871 Core 187 | . 60 35 . . 92 Absorbed by Shields . | . . . . . . Core Remaining (%) 81 | 100 . . . 62 . Volleys Fired 154 | . 59 45 . 3 47 Largest 2 | . 2 2 . 2 2 Hottest 120 | . 80 120 . 63 103 Shots Fired 293 | . 118 75 . 6 94 Gun 219 | . 116 20 . . 83 Cannon 68 | . 2 55 . . 11 Launcher 6 | . . . . 6 . Special . | . . . . . . Kinetic 219 | . 116 20 . . 83 Thermal 68 | . 2 55 . . 11 Explosive 6 | . . . . 6 . Electromagnetic . | . . . . . . Robot Hit Streak 11 | . 8 6 . 2 11 Robot Miss Streak 6 | . 6 4 . . 3 Penetration Max . | . . . . . . Secondary Targets 3 | . 2 . . . 1 Max Gunslinging Chain 1 | . 1 . . . 1 Shots Hit Robots 173 | . 70 38 . 1 64 Core Hits 76 | . 33 15 . 4 24 Critical Kills . | . . . . . . Critical Parts Destroyed 1 | . . . . . 1 Critical Strikes 1 | . . . . . 1 Destroy 1 | . . . . . 1 Melee Attacks . | . . . . . . Impact . | . . . . . . Slashing . | . . . . . . Piercing . | . . . . . . Sneak Attacks . | . . . . . . Combat Hostiles . | . . . . . . Follow-up Attacks . | . . . . . . Damage Inflicted 2821 | . 802 644 . 80 1295 Guns 1674 | . 800 49 . . 825 Cannons 825 | . . 595 . . 230 Explosions 320 | . . . . 80 240 Melee . | . . . . . . Ramming 2 | . 2 . . . . Kinetic 1674 | . 800 49 . . 825 Thermal 1065 | . . 595 . . 470 Explosive 80 | . . . . 80 . Electromagnetic . | . . . . . . Impact . | . . . . . . Slashing . | . . . . . . Piercing . | . . . . . . Highest Corruption . | . . . . . . Average Corruption . | . . . . . . Corruption Purged . | . . . . . . Corruption Blocked . | . . . . . . Overload Shots . | . . . . . . Overflow Damage 53 | . . . . . 53 Projectiles . | . . . . . . Explosions 53 | . . . . . 53 Melee . | . . . . . . Knockbacks . | . . . . . . Impact . | . . . . . . Kinetic . | . . . . . . Secondary . | . . . . . . Self-Inflicted Damage 51 | . . . . 1 50 Shots 2 | . . . . 1 1 Rammed . | . . . . . . Targets Rammed 1 | . 1 . . . . Kicked . | . . . . . . Crushed 1 | . 1 . . . . Highest Temperature 261 | . 18 261 . 15 188 Average Temperature 65 | . 8 96 . 5 33 Received Heat Transfer 564 | . 72 240 . 9 243 Siege Activations . | . . . . . . Martial Activations . | . . . . . . Shielding Activations . | . . . . . . Robots Disrupted . | . . . . . . Combat Hostiles . | . . . . . . Robots Corrupted . | . . . . . . Combat Hostiles . | . . . . . . Parts Fried . | . . . . . . Impact Corruptions . | . . . . . . Robots Melted . | . . . . . . Combat Hostiles . | . . . . . . Parts Melted 3 | . . 2 . . 1 Heat Transferred 1908 | . . 1258 . . 650 Parts Sabotaged . | . . . . . . Parts Stolen . | . . . . . . Parts Stripped . | . . . . . . Power Chain Reactions . | . . . . . . Alert | -11 -10 -10 -10 -9 -8 ------- Run | Yrd Mat Min Exi Min Mat Maximum Alert Level . | . . . . . . Low Security (%) 100 | 100 100 100 . 100 100 Level 1 . | . . . . . . Level 2 . | . . . . . . Level 3 . | . . . . . . Level 4 . | . . . . . . Level 5 . | . . . . . . High Security . | . . . . . . Max Security . | . . . . . . Peak Influence 165 | . 165 85 . 48 102 Initial . | . . . . . . Average 25 | . 49 11 . 4 30 Influence Increases 1215 | . 440 295 . 68 412 Destroy 0b10 Robot/C 740 | . 260 220 . 40 220 Destroy 0b10 Robot/NC 65 | . 35 5 . . 25 Destroy Leader 182 | . 58 40 . . 84 Successful Hack 36 | . 27 . . . 9 Disable Machine 60 | . . 30 . . 30 Destroy Structure 57 | . . . . 28 29 Lose Combat Pursuer 75 | . 60 . . . 15 Influence Decreases 1168 | . 440 295 . 68 365 Time Decay 1012 | . 440 255 . 58 259 Lost Part 80 | . . 40 . 10 30 Purge Threat 76 | . . . . . 76 Squads Dispatched 4 | . 2 . . . 2 Investigation . | . . . . . . Extermination . | . . . . . . Reinforcement 4 | . 2 . . . 2 Assault . | . . . . . . Garrison . | . . . . . . Intercept . | . . . . . . Searches Triggered . | . . . . . . Construction Impeded . | . . . . . . Haulers Reinforced . | . . . . . . Active Scanning Responses . | . . . . . . Cargo Convoy Interrupts . | . . . . . . Stealth | -11 -10 -10 -10 -9 -8 --------- Run | Yrd Mat Min Exi Min Mat Distress Signals 4 | . 4 . . . . Communications Jammed . | . . . . . . Distress Signals . | . . . . . . Times Spotted 68 | . 32 12 . 1 23 Peak Tracking Total 5 | . 5 2 . 1 4 Tactical Retreats 3 | . 2 . . . 1 Traps | -11 -10 -10 -10 -9 -8 ------- Run | Yrd Mat Min Exi Min Mat Traps Triggered . | . . . . . . Indirectly . | . . . . . . Trap Hack Attempts . | . . . . . . Triggered . | . . . . . . Disarmed . | . . . . . . Reprogrammed . | . . . . . . Reused . | . . . . . . Traps Extracted . | . . . . . . Installed . | . . . . . . Triggered . | . . . . . . Objects Rigged 2 | . . . . . 2 Exploded 1 | . . . . . 1 Machines | -11 -10 -10 -10 -9 -8 ---------- Run | Yrd Mat Min Exi Min Mat Machines Disabled 6 | . . 2 . 2 2 Max in Single Turn 2 | . . 1 . 2 1 Machines Repaired . | . . . . . . Machines Dismantled . | . . . . . . Machines Sabotaged . | . . . . . . Overloaded Fab Kills . | . . . . . . Hacking | -11 -10 -10 -10 -9 -8 --------- Run | Yrd Mat Min Exi Min Mat Machines Accessed 14 | . 7 . 1 . 6 Terminals 10 | . 6 . . . 4 Fabricators . | . . . . . . Repair Stations 1 | . . . . . 1 Recycling Units 2 | . 1 . . . 1 Scanalyzers . | . . . . . . Garrison Access . | . . . . . . Total Hacks 39 | . 24 . 1 . 14 Successful 28 | . 17 . 1 . 10 Failed 11 | . 7 . . . 4 Catastrophic . | . . . . . . Database Lockouts . | . . . . . . Manual 28 | . 19 . 1 . 8 Terminals 33 | . 23 . . . 10 Fabricators . | . . . . . . Repair Stations 2 | . . . . . 2 Recycling Units 3 | . 1 . . . 2 Scanalyzers . | . . . . . . Garrison Access . | . . . . . . Terminal Hacks 14 | . 9 . 1 . 4 Record 4 | . 1 . . . 3 Part Schematic 2 | . 2 . . . . Robot Analysis 1 | . 1 . . . . Branch Access Points 1 | . 1 . . . . Terminal Index 1 | . 1 . . . . Scanalyzer Index 1 | . 1 . . . . Unreport Threat 1 | . . . . . 1 Hauler Manifests 1 | . 1 . . . . Zone Layout 1 | . 1 . . . . Proto ID Catalog 1 | . . . 1 . . Fabricator Hacks . | . . . . . . Repair Station Hacks . | . . . . . . Recycling Unit Hacks . | . . . . . . Scanalyzer . | . . . . . . Garrison Access Hacks . | . . . . . . Unauthorized Hacks 14 | . 8 . . . 6 Terminals 11 | . 7 . . . 4 Botnet 2 | . 1 . . . 1 Operators 1 | . 1 . . . . Skim 8 | . 5 . . . 3 Fabricators . | . . . . . . Repair Stations 1 | . . . . . 1 Mechanics 1 | . . . . . 1 Recycling Units 2 | . 1 . . . 1 Recyclers 2 | . 1 . . . 1 Scanalyzers . | . . . . . . Garrison Access . | . . . . . . Data Cores Recovered 1 | . 1 . . . . Used 1 | . 1 . . . . Hacking Detections 11 | . 6 . . . 5 Full Trace Events . | . . . . . . Feedback Events . | . . . . . . Feedback Blocked . | . . . . . . Robot Schematics Acquired . | . . . . . . Robots Built . | . . . . . . Authchips . | . . . . . . Time . | . . . . . . Total Robot Build Rating . | . . . . . . Part Schematics Acquired 2 | . 2 . . . . Parts Built . | . . . . . . Authchips . | . . . . . . Time . | . . . . . . Total Part Build Rating . | . . . . . . Part Studies Acquired . | . . . . . . Parts Repaired . | . . . . . . Time . | . . . . . . Parts Recycled . | . . . . . . Recycled Matter . | . . . . . . Retrieved Matter . | . . . . . . Retrieved Components . | . . . . . . Parts Scanalyzed . | . . . . . . Part Schematics Acquired . | . . . . . . Parts Damaged . | . . . . . . Bothacking | -11 -10 -10 -10 -9 -8 ------------ Run | Yrd Mat Min Exi Min Mat Used RIF Installer . | . . . . . . Robots Hacked . | . . . . . . Non-combat . | . . . . . . Combat . | . . . . . . Robot Hacks Applied . | . . . . . . Relay Couplers Released . | . . . . . . Fabnet Peak Effective % . | . . . . . . Robots Rewired . | . . . . . . Allies Hacked . | . . . . . . Hacks Repelled . | . . . . . . Allies | -11 -10 -10 -10 -9 -8 -------- Run | Yrd Mat Min Exi Min Mat Total Allies 1 | . . 1 . . . Largest Group 1 | . . 1 . . . Highest-Rated Group 31 | . . 31 . . . Highest-Rated Ally 31 | . . 31 . . . Total Orders . | . . . . . . Ally Attacks . | . . . . . . Total Damage . | . . . . . . Kills . | . . . . . . Allies Corrupted . | . . . . . . Allies Melted . | . . . . . . Intel | -11 -10 -10 -10 -9 -8 ------- Run | Yrd Mat Min Exi Min Mat Active Infowar (turns) 1030 | . . . . . 1030 Terrain 209 | . . . . . 209 Traps 821 | . . . . . 821 Robot Analysis Total 1 | . 1 . . . . Derelict Logs Recovered 4 | . . 2 . 2 . Drone Launches . | . . . . . . Drone Recoveries . | . . . . . . Exploration | -11 -10 -10 -10 -9 -8 ------------- Run | Yrd Mat Min Exi Min Mat Turns Passed 6404 | 97 1726 2256 633 651 1041 Spaces Moved 2868 | 57 933 887 263 265 463 Core 19 | 19 . . . . . Treads 2849 | 38 933 887 263 265 463 Legs . | . . . . . . Wheels . | . . . . . . Hover . | . . . . . . Flight . | . . . . . . Fastest Speed 50 | 50 160 160 240 240 160 Average Speed 194 | 123 160 226 240 240 160 Slowest Speed 240 | 160 160 240 240 240 160 Overloaded Moves . | . . . . . . Propulsion Burnouts . | . . . . . . Robots Hopped . | . . . . . . Potential Cave-ins . | . . . . . . Cave-ins Triggered . | . . . . . . Exploration Rate (%) 59 | 3 96 93 61 62 43 Regions Visited 5 Branch Regions 3 Pre-discovered Areas 1 | . 1 . . . . Known Exits Taken 2 | . 1 . 1 . . Unknown Exits Taken 3 | 1 . 1 . 1 . Scrap Searched 2 | . . 1 . 1 . Spaces Dug . | . . . . . . Terrain Destroyed 65 | . . . . 40 25 Melee . | . . . . . . Projectile 2 | . . . . . 2 AOE 63 | . . . . 40 23 Terrain Rammed . | . . . . . . Walls Destroyed . | . . . . . . Machines Disabled . | . . . . . . Actions | -11 -10 -10 -10 -9 -8 --------- Run | Yrd Mat Min Exi Min Mat Total 3429 | 84 1061 1060 266 274 684 Wait 275 | 14 46 110 . . 105 Move 2863 | 56 932 886 262 264 463 Hop . | . . . . . . Pick Up 61 | 8 14 10 3 4 22 Fast Attach 4 | . 1 . . . 3 Attach 22 | 6 1 5 . 1 9 Detach 4 | . . . . . 4 Swap 13 | . 1 2 . 2 8 Drop 30 | . 6 2 1 . 21 Fire 154 | . 59 45 . 3 47 Melee . | . . . . . . Ram . | . . . . . . Kick . | . . . . . . Crush 1 | . 1 . . . . Escape Stasis . | . . . . . . Rewire . | . . . . . . Trap 2 | . . . . . 2 Miscellaneous . | . . . . . . Route ------- -11/Scrapyard -10/Materials (discovered 5 exits: *Mat x3 / *Min x2) -10/Mines (discovered 4 exits: *Mat x2 / *Exi / *Sub) -10/Exiles (discovered 2 exits: *Min x2) -9/Mines -8/Materials (discovered 5 exits: Fac x3 / *Sto x2) History --------- Turn | Location | Event 5 | -11/Scrapyard | Discovered new exit (range 16) 98 | -11/Scrapyard | Entered Materials 309 | -10/Materials | Build established: Mutant 460 | -10/Materials | Discovered new exit (range 10) 466 | -10/Materials | Identified exit to Mines 547 | -10/Materials | Loaded intel: 20 trap records 619 | -10/Materials | Identified exit to Materials 739 | -10/Materials | Learned location of Storage (-8) 906 | -10/Materials | Learned location of 2 exits from Materials 1824 | -10/Materials | Entered Mines 1825 | -10/Mines | Identified exit to Subcaves 2132 | -10/Mines | Discovered exit to Materials (range 14) 2279 | -10/Mines | Excavation squad dispatched 2279 | -10/Mines | A large section of the Mines collapsed 2568 | -10/Mines | Learned Materials garrison access intel 2817 | -10/Mines | Received a Mining Laser from a helpful Derelict 3043 | -10/Mines | Learned Materials stockpile data 3483 | -10/Mines | Discovered exit to Materials (range 9) 4068 | -10/Mines | Deemed a non-threat by the Exiles lab entrance 4071 | -10/Mines | Discovered new exit (range 5) 4080 | -10/Mines | Entered Exiles 4081 | -10/Exiles | Identified exit to Mines 4176 | -10/Exiles | Met 8R-AWN 4212 | -10/Exiles | Met EX-HEX 4284 | -10/Exiles | Met EX-BIN 4311 | -10/Exiles | Aligned with FarCom system 4313 | -10/Exiles | Given EX-Vault access code 4392 | -10/Exiles | Opened EX-Vault 4412 | -10/Exiles | Found PSU Rigger 4462 | -10/Exiles | Warned to stay clear of 0b10 Research branches 4532 | -10/Exiles | Met EX-DEC 4713 | -10/Exiles | Left Exiles lab with PSU Rigger 4713 | -10/Exiles | Entered Mines 4963 | -9/Mines | Joined a pair of Derelicts in attacking an 0b10 outpost 5232 | -9/Mines | Learned 2 Materials zone layouts 5326 | -9/Mines | Discovered new exit (range 8) 5335 | -9/Mines | Learned 4 Materials zone layouts 5364 | -9/Mines | Entered Materials 5364 | -8/Materials | Evolved 4 slots: Propulsion x2, Utility x2 5365 | -8/Materials | Identified exit to Factory 5366 | -8/Materials | Identified exit to Storage 5368 | -8/Materials | Loaded intel: 1 garrison access location 5913 | -8/Materials | Discovered exit to Storage (range 11) 5963 | -8/Materials | Build established: Scavenger-Mutant 6405 | -8/Materials | Self-destructed Last Messages --------------- Please expand to 2 more systems! Acquired Reactive Plating. K-01 Serf cleans the Processing Tank. Connecting with Recycling Unit... >>Trojan(Recyclers) Trojan loaded successfully. Testing... Recycler tracking enabled and active. G-47 Trooper destroyed. G-50 Soldier destroyed. Acquired 53 matter. Acquired 40 matter. Trap Scanner disarmed Shock Trap. Y-45 Defender destroyed. Acquired 21 matter. Hacking Suite destroyed. Lgt. Treads destroyed. G-50 Soldier destroyed. Lgt. Armor Plating destroyed. R-06 Scavenger collects Hvy. Laser. Map ----- +----------------------------------------------------+ | | | | | | | | | | | | | | | | | | | | | | | | | | | | | | | | | | | | | ????##########???????????????????????????????????? | | ????# #???????????????????????????????????? | | ????# """ ########????????????????????????????? | | ????# """ # #???######???######??????????? | | ????# """ =# ##### ##### ######?????? | | ????# +% r g " #?????? | | ##### """ =# %!*%! #?????? | | + """ # * #####@[= ##### ##+###?????? | | ##### """ # #???###########+###??????????? | | ????# ## ########## #??????????? | | ????##"Y"###### # !# #??????????? | | ?????#"""#????# # ^""" # """ [/ #??????????? | | ?????#####????# + ^ """ # """ [/ #??????????? | | ??????????????# g# """ # """ [* #??????????? | | ????